[Event "MČR v bleskovém šachu družstev 2019"]
[Site "Teplice, Czech Republic"]
[Date "2019.09.14"]
[Round "6.25"]
[White "Istona, Martin"]
[Black "Trepka, Jan"]
[Result "1/2-1/2"]
[TimeControl "3 mim. + 2 s"]
[WhiteTitle "FM"]
[WhiteFideId "14923475"]
[BlackFideId "322814"]
[WhiteElo "2078"]
[BlackElo "2186"]

1. e4 {[%clk 00:03:02]} {[%emt 00:00:02]} c6 {[%clk 00:03:03]} {[%emt
00:00:01]} 2. d4 {[%clk 00:03:03]} {[%emt 00:00:01]} d5 {[%clk 00:03:05]} 3. e5
{[%clk 00:03:04]} {[%emt 00:00:02]} Bf5 {[%clk 00:03:06]} 4. h4 {[%clk
00:03:05]} {[%emt 00:00:01]} h5 {[%clk 00:03:07]} 5. Bd3 {[%clk 00:03:06]}
{[%emt 00:00:02]} Bxd3 {[%clk 00:03:07]} {[%emt 00:00:02]} 6. Qxd3 {[%clk
00:03:07]} {[%emt 00:00:02]} e6 {[%clk 00:03:08]} 7. Nf3 {[%clk 00:03:05]}
{[%emt 00:00:04]} Ne7 {[%clk 00:02:59]} {[%emt 00:00:11]} 8. Bg5 {[%clk
00:02:55]} {[%emt 00:00:12]} Qb6 {[%clk 00:02:53]} {[%emt 00:00:08]} 9. b3
{[%clk 00:02:55]} {[%emt 00:00:02]} Nf5 {[%clk 00:02:37]} {[%emt 00:00:18]} 10.
c4 {[%clk 00:02:48]} {[%emt 00:00:09]} dxc4 {[%clk 00:02:22]} {[%emt 00:00:17]}
11. bxc4 {[%clk 00:02:22]} {[%emt 00:00:28]} Qb2 {[%clk 00:01:29]} {[%emt
00:00:55]} 12. O-O {[%clk 00:02:22]} {[%emt 00:00:02]} Qxa1 {[%clk 00:01:26]}
{[%emt 00:00:06]} 13. Qb3 {[%clk 00:02:16]} {[%emt 00:00:07]} Nxd4 {[%clk
00:01:01]} {[%emt 00:00:27]} 14. Nxd4 {[%clk 00:02:17]} {[%emt 00:00:01]} Qxd4
{[%clk 00:01:00]} {[%emt 00:00:03]} 15. Qxb7 {[%clk 00:02:16]} {[%emt
00:00:03]} Qd7 {[%clk 00:00:48]} {[%emt 00:00:14]} 16. Qxa8 {[%clk 00:02:11]}
{[%emt 00:00:07]} Qc7 {[%clk 00:00:45]} {[%emt 00:00:05]} 17. Be3 {[%clk
00:01:42]} {[%emt 00:00:31]} Be7 {[%clk 00:00:34]} {[%emt 00:00:13]} 18. Qxa7
{[%clk 00:01:42]} {[%emt 00:00:01]} Qxa7 19. Bxa7 {[%clk 00:01:43]} Kd7 {[%clk
00:00:26]} {[%emt 00:00:06]} 20. g3 {[%clk 00:01:20]} {[%emt 00:00:25]} Na6
{[%clk 00:00:23]} {[%emt 00:00:05]} 21. Be3 {[%clk 00:01:20]} {[%emt 00:00:02]}
Rb8 {[%clk 00:00:22]} {[%emt 00:00:02]} 22. Nc3 {[%clk 00:01:19]} {[%emt
00:00:04]} Rb2 {[%clk 00:00:19]} {[%emt 00:00:06]} 23. Rb1 {[%clk 00:01:05]}
{[%emt 00:00:15]} Rxb1+ {[%clk 00:00:20]} {[%emt 00:00:02]} 24. Nxb1 {[%clk
00:01:06]} {[%emt 00:00:01]} Nb4 {[%clk 00:00:18]} {[%emt 00:00:04]} 25. Nc3
{[%clk 00:01:07]} {[%emt 00:00:01]} Nd3 {[%clk 00:00:13]} {[%emt 00:00:06]} 26.
f4 {[%clk 00:00:57]} {[%emt 00:00:12]} Nb2 {[%clk 00:00:14]} 27. Ne4 {[%clk
00:00:31]} {[%emt 00:00:27]} Nxc4 {[%clk 00:00:12]} {[%emt 00:00:05]} 28. Bc5
{[%clk 00:00:32]} {[%emt 00:00:01]} Bxc5+ 29. Nxc5+ {[%clk 00:00:33]} Kc7
{[%clk 00:00:09]} 30. Kf2 {[%clk 00:00:33]} {[%emt 00:00:02]} Kb6 {[%clk
00:00:09]} {[%emt 00:00:02]} 31. Ne4 {[%clk 00:00:32]} {[%emt 00:00:03]} Kb5
{[%clk 00:00:09]} {[%emt 00:00:02]} 32. Ng5 {[%clk 00:00:32]} {[%emt 00:00:01]}
f6 {[%clk 00:00:09]} {[%emt 00:00:02]} 33. exf6 {[%clk 00:00:31]} {[%emt
00:00:04]} gxf6 {[%clk 00:00:10]} {[%emt 00:00:01]} 34. Nxe6 {[%clk 00:00:32]}
Nd6 {[%clk 00:00:07]} {[%emt 00:00:05]} 35. Ng7 {[%clk 00:00:15]} {[%emt
00:00:20]} Kc4 {[%clk 00:00:09]} {[%emt 00:00:01]} 36. Nxh5 {[%clk 00:00:14]}
{[%emt 00:00:02]} f5 {[%clk 00:00:09]} {[%emt 00:00:02]} 37. Ng7 {[%clk
00:00:10]} {[%emt 00:00:06]} Kd3 {[%clk 00:00:09]} {[%emt 00:00:03]} 38. Ne6
{[%clk 00:00:10]} {[%emt 00:00:02]} Ne4+ {[%clk 00:00:05]} {[%emt 00:00:05]} 39.
Kf3 {[%clk 00:00:08]} {[%emt 00:00:04]} c5 {[%clk 00:00:07]} 40. h5 {[%clk
00:00:09]} c4 {[%clk 00:00:09]} 41. Nc5+ {[%clk 00:00:09]} {[%emt 00:00:02]}
Nxc5 {[%clk 00:00:05]} {[%emt 00:00:06]} 42. h6 {[%clk 00:00:11]} c3 {[%clk
00:00:06]} 43. h7 {[%clk 00:00:11]} {[%emt 00:00:02]} c2 {[%clk 00:00:08]} 44.
h8=Q {[%clk 00:00:12]} {[%emt 00:00:02]} c1=Q {[%clk 00:00:09]} 45. Qd8+ {[%clk
00:00:09]} {[%emt 00:00:04]} Kc4 {[%clk 00:00:10]} 46. Qg8+ {[%clk 00:00:09]}
{[%emt 00:00:02]} Kb4 {[%clk 00:00:11]} {[%emt 00:00:01]} 47. Qb8+ {[%clk
00:00:08]} {[%emt 00:00:03]} Kc3 {[%clk 00:00:12]} {[%emt 00:00:01]} 48. Qe5+
{[%clk 00:00:05]} {[%emt 00:00:05]} Kb4 {[%clk 00:00:12]} {[%emt 00:00:02]} 49.
Qb8+ {[%clk 00:00:06]} Kc4 {[%clk 00:00:11]} {[%emt 00:00:04]} 50. Qg8+ {[%clk
00:00:07]} Kb5 {[%clk 00:00:09]} {[%emt 00:00:04]} 51. Qb8+ {[%clk 00:00:08]}
{[%emt 00:00:02]} Ka5 {[%clk 00:00:08]} {[%emt 00:00:03]} 52. Qa8+ {[%clk
00:00:05]} {[%emt 00:00:04]} Kb4 {[%clk 00:00:07]} {[%emt 00:00:03]} 53. Qb8+
{[%clk 00:00:06]} Ka3 {[%clk 00:00:05]} {[%emt 00:00:03]} 54. Qa7+ {[%clk
00:00:05]} {[%emt 00:00:03]} Kb2 {[%clk 00:00:07]} 55. Qb6+ {[%clk 00:00:06]}
{[%emt 00:00:02]} Ka1 {[%clk 00:00:08]} 56. Qf6+ {[%clk 00:00:05]} {[%emt
00:00:03]} Kxa2 {[%clk 00:00:08]} {[%emt 00:00:02]} 57. Qxf5 {[%clk 00:00:05]}
{[%emt 00:00:02]} Qd1+ {[%clk 00:00:09]} {[%emt 00:00:01]} 58. Kg2 {[%clk
00:00:05]} {[%emt 00:00:02]} Nd3 {[%clk 00:00:10]} {[%emt 00:00:01]} 59. Qd5+
{[%clk 00:00:05]} {[%emt 00:00:02]} Kb2 {[%clk 00:00:11]} {[%emt 00:00:01]} 60.
Qd4+ {[%clk 00:00:06]} Kc2 {[%clk 00:00:12]} 61. Qc4+ {[%clk 00:00:05]} {[%emt
00:00:03]} Kd2 {[%clk 00:00:13]} 62. Qa2+ {[%clk 00:00:06]} Ke3 {[%clk
00:00:14]} {[%emt 00:00:01]} 63. Qe6+ {[%clk 00:00:07]} {[%emt 00:00:02]} Kd2
{[%clk 00:00:14]} {[%emt 00:00:02]} 64. Qa2+ {[%clk 00:00:08]} Ke3 {[%clk
00:00:14]} {[%emt 00:00:03]} 1/2-1/2

[Event "MČR v bleskovém šachu družstev 2019"]
[Site "Teplice, Czech Republic"]
[Date "2019.09.14"]
[Round "6.26"]
[White "Ruzicka, Ales"]
[Black "Markovic, Milan"]
[Result "1-0"]
[TimeControl "3 mim. + 2 s"]
[WhiteFideId "325252"]
[BlackFideId "305103"]
[WhiteElo "2102"]
[BlackElo "2113"]

1. e4 {[%clk 00:03:01]} {[%emt 00:00:03]} e5 {[%clk 00:03:02]} {[%emt
00:00:01]} 2. Nf3 {[%clk 00:03:00]} {[%emt 00:00:03]} f5 {[%clk 00:03:04]}
{[%emt 00:00:01]} 3. d3 {[%clk 00:03:00]} {[%emt 00:00:02]} Nf6 {[%clk
00:03:04]} {[%emt 00:00:01]} 4. Nc3 {[%clk 00:02:59]} {[%emt 00:00:03]} Nc6
{[%clk 00:03:04]} {[%emt 00:00:03]} 5. Bg5 {[%clk 00:02:56]} {[%emt 00:00:04]}
Be7 {[%clk 00:03:05]} {[%emt 00:00:02]} 6. exf5 {[%clk 00:02:55]} {[%emt
00:00:03]} d6 {[%clk 00:03:04]} {[%emt 00:00:02]} 7. Be2 {[%clk 00:02:54]}
{[%emt 00:00:03]} Bxf5 {[%clk 00:03:05]} {[%emt 00:00:02]} 8. Qd2 {[%clk
00:02:53]} {[%emt 00:00:03]} O-O {[%clk 00:03:05]} {[%emt 00:00:03]} 9. O-O
{[%clk 00:02:52]} {[%emt 00:00:02]} Qd7 {[%clk 00:02:40]} {[%emt 00:00:27]} 10.
Bxf6 {[%clk 00:02:33]} {[%emt 00:00:21]} Bxf6 {[%clk 00:02:40]} {[%emt
00:00:02]} 11. Ne4 {[%clk 00:02:31]} {[%emt 00:00:03]} Be7 {[%clk 00:02:33]}
{[%emt 00:00:10]} 12. Ng3 {[%clk 00:02:32]} {[%emt 00:00:01]} Bg6 {[%clk
00:02:34]} {[%emt 00:00:01]} 13. Rfe1 {[%clk 00:02:23]} {[%emt 00:00:11]} Rae8
{[%clk 00:02:26]} {[%emt 00:00:10]} 14. Bf1 {[%clk 00:02:22]} {[%emt 00:00:03]}
Bd8 {[%clk 00:02:16]} {[%emt 00:00:12]} 15. c3 {[%clk 00:02:18]} {[%emt
00:00:06]} a6 {[%clk 00:01:26]} {[%emt 00:00:51]} 16. Rad1 {[%clk 00:02:13]}
{[%emt 00:00:07]} Kh8 {[%clk 00:01:14]} {[%emt 00:00:16]} 17. Qe2 {[%clk
00:02:13]} {[%emt 00:00:01]} Qf7 {[%clk 00:01:06]} {[%emt 00:00:10]} 18. Ne4
{[%clk 00:02:10]} {[%emt 00:00:05]} Bh5 {[%clk 00:00:40]} {[%emt 00:00:28]} 19.
Ned2 {[%clk 00:02:03]} {[%emt 00:00:09]} e4 {[%clk 00:00:33]} {[%emt 00:00:09]}
20. dxe4 {[%clk 00:02:00]} {[%emt 00:00:05]} Ne5 {[%clk 00:00:34]} {[%emt
00:00:01]} 21. Qe3 {[%clk 00:01:53]} {[%emt 00:00:09]} Bxf3 {[%clk 00:00:24]}
{[%emt 00:00:12]} 22. Nxf3 {[%clk 00:01:52]} {[%emt 00:00:02]} Nxf3+ {[%clk
00:00:25]} {[%emt 00:00:01]} 23. gxf3 {[%clk 00:01:53]} {[%emt 00:00:02]} Qxf3
{[%clk 00:00:26]} {[%emt 00:00:01]} 24. Qxf3 {[%clk 00:01:48]} {[%emt
00:00:07]} Rxf3 {[%clk 00:00:26]} {[%emt 00:00:01]} 25. Bg2 {[%clk 00:01:47]}
{[%emt 00:00:03]} Rf4 {[%clk 00:00:22]} {[%emt 00:00:06]} 26. e5 {[%clk
00:01:44]} {[%emt 00:00:05]} Bh4 {[%clk 00:00:05]} {[%emt 00:00:20]} 27. Re2
{[%clk 00:01:40]} {[%emt 00:00:07]} dxe5 {[%clk 00:00:04]} {[%emt 00:00:02]} 28.
Bxb7 {[%clk 00:01:38]} {[%emt 00:00:04]} Ref8 {[%emt 00:00:04]} 1-0

[Event "MČR v bleskovém šachu družstev 2019"]
[Site "Teplice, Czech Republic"]
[Date "2019.09.14"]
[Round "6.27"]
[White "Svatos, Jan"]
[Black "Loskot, Petr"]
[Result "1-0"]
[TimeControl "3 mim. + 2 s"]
[WhiteTitle "FM"]
[WhiteFideId "304174"]
[BlackFideId "319570"]
[WhiteElo "2183"]
[BlackElo "2010"]

1. e4 {[%clk 00:03:01]} {[%emt 00:00:02]} Nc6 {[%clk 00:03:03]} {[%emt
00:00:01]} 2. d4 {[%clk 00:03:00]} {[%emt 00:00:04]} d5 {[%clk 00:03:04]} 3. e5
{[%clk 00:03:01]} {[%emt 00:00:01]} f6 {[%clk 00:03:06]} 4. f4 {[%clk
00:02:43]} {[%emt 00:00:20]} Nh6 {[%clk 00:03:07]} 5. c3 {[%clk 00:02:42]}
{[%emt 00:00:04]} Bg4 {[%clk 00:03:08]} 6. Be2 {[%clk 00:02:39]} {[%emt
00:00:05]} Qd7 {[%clk 00:03:06]} {[%emt 00:00:04]} 7. Be3 {[%clk 00:01:47]}
{[%emt 00:00:54]} Bxe2 {[%clk 00:02:59]} {[%emt 00:00:08]} 8. Qxe2 {[%clk
00:01:44]} {[%emt 00:00:06]} O-O-O {[%clk 00:02:59]} 9. Nd2 {[%clk 00:01:42]}
{[%emt 00:00:04]} e6 {[%clk 00:02:46]} {[%emt 00:00:15]} 10. Ngf3 {[%clk
00:01:24]} {[%emt 00:00:20]} fxe5 {[%clk 00:02:46]} {[%emt 00:00:02]} 11. fxe5
{[%clk 00:01:25]} {[%emt 00:00:01]} Nf5 {[%clk 00:02:46]} {[%emt 00:00:02]} 12.
Bf2 {[%clk 00:01:25]} {[%emt 00:00:02]} h6 {[%clk 00:02:43]} {[%emt 00:00:04]}
13. g4 {[%clk 00:01:23]} {[%emt 00:00:04]} Nfe7 {[%clk 00:02:40]} {[%emt
00:00:05]} 14. O-O-O {[%clk 00:01:23]} {[%emt 00:00:03]} g5 {[%clk 00:02:41]}
{[%emt 00:00:01]} 15. h4 {[%clk 00:01:21]} {[%emt 00:00:03]} gxh4 {[%clk
00:02:33]} {[%emt 00:00:11]} 16. Bxh4 {[%clk 00:01:18]} {[%emt 00:00:06]} Re8
{[%clk 00:02:30]} {[%emt 00:00:04]} 17. Bf6 {[%clk 00:01:05]} {[%emt 00:00:14]}
Rg8 {[%clk 00:02:30]} {[%emt 00:00:03]} 18. g5 {[%clk 00:01:05]} {[%emt
00:00:02]} hxg5 {[%clk 00:02:25]} {[%emt 00:00:07]} 19. Nxg5 {[%clk 00:01:04]}
{[%emt 00:00:03]} Nf5 {[%clk 00:02:26]} {[%emt 00:00:02]} 20. Rh7 {[%clk
00:00:40]} {[%emt 00:00:25]} Be7 {[%clk 00:02:17]} {[%emt 00:00:11]} 21. Qf3
{[%clk 00:00:22]} {[%emt 00:00:21]} Nd8 {[%clk 00:01:59]} {[%emt 00:00:19]} 22.
Rf1 {[%clk 00:00:18]} {[%emt 00:00:06]} Qb5 {[%clk 00:01:39]} {[%emt 00:00:20]}
23. Nxe6 {[%clk 00:00:17]} {[%emt 00:00:05]} Nxe6 {[%clk 00:01:38]} {[%emt
00:00:03]} 24. Qxf5 {[%clk 00:00:17]} {[%emt 00:00:01]} Bxf6 {[%clk 00:01:36]}
{[%emt 00:00:05]} 25. exf6 {[%clk 00:00:14]} {[%emt 00:00:05]} Rgf8 {[%clk
00:01:35]} {[%emt 00:00:03]} 26. Re1 {[%clk 00:00:13]} {[%emt 00:00:03]} Qc6
{[%clk 00:01:28]} {[%emt 00:00:09]} 27. Re5 {[%emt 00:00:06]} Kb8 {[%clk
00:01:27]} 28. Nf3 {[%clk 00:00:11]} {[%emt 00:00:02]} Qa6 {[%clk 00:01:21]}
{[%emt 00:00:09]} 29. a3 {[%emt 00:00:03]} Qf1+ {[%clk 00:01:21]} 30. Kc2
{[%clk 00:00:11]} {[%emt 00:00:02]} Qg2+ {[%clk 00:01:21]} {[%emt 00:00:03]} 31.
Nd2 {[%clk 00:00:11]} {[%emt 00:00:02]} Ng5 {[%clk 00:00:57]} {[%emt 00:00:25]}
32. Rxe8+ Rxe8 {[%clk 00:00:59]} 33. f7 {[%clk 00:00:11]} {[%emt 00:00:01]}
Nxf7 {[%clk 00:00:58]} {[%emt 00:00:03]} 34. Qxf7 {[%clk 00:00:12]} {[%emt
00:00:01]} Rc8 {[%clk 00:00:57]} {[%emt 00:00:03]} 35. Rg7 {[%clk 00:00:12]}
{[%emt 00:00:01]} Qe2 {[%clk 00:00:56]} {[%emt 00:00:03]} 36. Qxd5 {[%clk
00:00:13]} {[%emt 00:00:02]} a6 {[%clk 00:00:55]} {[%emt 00:00:03]} 37. Qe4
{[%clk 00:00:14]} {[%emt 00:00:01]} Qh5 {[%clk 00:00:55]} {[%emt 00:00:02]} 38.
Rh7 {[%clk 00:00:14]} {[%emt 00:00:02]} Qb5 {[%clk 00:00:56]} {[%emt 00:00:01]}
39. Kb1 {[%clk 00:00:14]} {[%emt 00:00:03]} a5 {[%clk 00:00:55]} {[%emt
00:00:03]} 40. Nf3 {[%clk 00:00:14]} {[%emt 00:00:01]} Qf1+ {[%clk 00:00:56]}
{[%emt 00:00:02]} 41. Kc2 {[%clk 00:00:14]} {[%emt 00:00:02]} Qf2+ {[%clk
00:00:56]} {[%emt 00:00:01]} 42. Nd2 {[%clk 00:00:15]} Qg1 {[%clk 00:00:55]}
{[%emt 00:00:03]} 43. Re7 {[%clk 00:00:12]} {[%emt 00:00:06]} Qg5 {[%clk
00:00:54]} {[%emt 00:00:03]} 44. Re8 {[%clk 00:00:11]} {[%emt 00:00:03]} a4
{[%clk 00:00:52]} {[%emt 00:00:03]} 45. Rxc8+ {[%clk 00:00:11]} {[%emt
00:00:03]} 1-0

[Event "MČR v bleskovém šachu družstev 2019"]
[Site "Teplice, Czech Republic"]
[Date "2019.09.14"]
[Round "6.28"]
[White "Meszaros, Ludek"]
[Black "Toulec, Stanislav"]
[Result "1-0"]
[TimeControl "3 mim. + 2 s"]
[WhiteFideId "308153"]
[BlackFideId "319023"]
[WhiteElo "2070"]
[BlackElo "2074"]

1. e4 {[%emt 00:00:12]} e5 {[%emt 00:00:02]} 2. Nf3 Nc6 {[%clk 00:02:48]}
{[%emt 00:00:01]} 3. Bb5 {[%clk 00:03:04]} {[%emt 00:00:01]} Nf6 {[%clk
00:02:47]} {[%emt 00:00:03]} 4. O-O {[%clk 00:03:05]} {[%emt 00:00:02]} d6
{[%clk 00:02:48]} {[%emt 00:00:01]} 5. d3 {[%clk 00:03:05]} Be7 {[%clk
00:02:49]} {[%emt 00:00:01]} 6. h3 {[%clk 00:03:06]} O-O {[%clk 00:02:48]}
{[%emt 00:00:02]} 7. c3 {[%clk 00:03:08]} Bd7 {[%clk 00:02:47]} {[%emt
00:00:03]} 8. Nbd2 {[%clk 00:03:09]} {[%emt 00:00:03]} h6 {[%clk 00:02:45]}
{[%emt 00:00:04]} 9. Re1 {[%clk 00:03:09]} {[%emt 00:00:01]} Re8 {[%clk
00:02:46]} {[%emt 00:00:01]} 10. Nf1 {[%clk 00:03:10]} Bf8 {[%clk 00:02:48]}
{[%emt 00:00:01]} 11. Ng3 {[%clk 00:03:09]} {[%emt 00:00:03]} a6 {[%clk
00:02:48]} {[%emt 00:00:02]} 12. Ba4 {[%clk 00:03:10]} {[%emt 00:00:01]} b5
{[%clk 00:02:45]} {[%emt 00:00:05]} 13. Bb3 {[%clk 00:03:11]} Na5 {[%clk
00:02:45]} {[%emt 00:00:03]} 14. Bc2 {[%clk 00:03:13]} c5 {[%clk 00:02:46]}
{[%emt 00:00:01]} 15. d4 {[%clk 00:03:10]} {[%emt 00:00:05]} Qc7 {[%clk
00:02:44]} {[%emt 00:00:02]} 16. d5 {[%clk 00:03:12]} Nb7 {[%clk 00:02:43]}
{[%emt 00:00:04]} 17. a4 {[%clk 00:03:07]} {[%emt 00:00:07]} Rec8 {[%clk
00:02:32]} {[%emt 00:00:13]} 18. Be3 {[%clk 00:03:01]} {[%emt 00:00:09]} Nd8
{[%clk 00:02:28]} {[%emt 00:00:05]} 19. axb5 {[%clk 00:02:54]} {[%emt
00:00:09]} axb5 {[%clk 00:02:29]} {[%emt 00:00:02]} 20. Rxa8 {[%clk 00:02:54]}
{[%emt 00:00:02]} Rxa8 {[%clk 00:02:30]} {[%emt 00:00:01]} 21. Nh4 {[%clk
00:02:52]} {[%emt 00:00:04]} Nh7 {[%clk 00:02:23]} {[%emt 00:00:09]} 22. Nhf5
{[%clk 00:02:50]} {[%emt 00:00:04]} Ra2 {[%clk 00:02:12]} {[%emt 00:00:12]} 23.
Bc1 {[%clk 00:02:47]} {[%emt 00:00:05]} b4 {[%clk 00:02:04]} {[%emt 00:00:11]}
24. Bb3 {[%clk 00:02:40]} {[%emt 00:00:09]} Ra1 {[%clk 00:01:59]} {[%emt
00:00:07]} 25. c4 {[%clk 00:02:40]} {[%emt 00:00:02]} Bxf5 {[%clk 00:01:49]}
{[%emt 00:00:12]} 26. exf5 {[%clk 00:02:27]} {[%emt 00:00:14]} f6 {[%clk
00:01:42]} {[%emt 00:00:10]} 27. Ne4 {[%clk 00:02:25]} {[%emt 00:00:04]} Ng5
{[%clk 00:01:40]} {[%emt 00:00:05]} 28. Nxg5 hxg5 {[%clk 00:01:40]} 29. Qe2
{[%clk 00:02:10]} {[%emt 00:00:16]} Qf7 {[%clk 00:01:38]} {[%emt 00:00:04]} 30.
Bd2 {[%clk 00:02:04]} {[%emt 00:00:09]} Rxe1+ {[%clk 00:01:38]} {[%emt
00:00:02]} 31. Qxe1 {[%clk 00:02:05]} {[%emt 00:00:02]} g6 {[%clk 00:01:36]}
{[%emt 00:00:03]} 32. Bc2 {[%clk 00:02:03]} {[%emt 00:00:03]} gxf5 {[%clk
00:01:33]} {[%emt 00:00:05]} 33. Bxf5 {[%clk 00:02:04]} {[%emt 00:00:01]} Qa7
{[%clk 00:01:30]} {[%emt 00:00:05]} 34. Qc1 {[%clk 00:01:58]} {[%emt 00:00:08]}
Nf7 {[%clk 00:01:14]} {[%emt 00:00:19]} 35. Be6 {[%clk 00:01:58]} {[%emt
00:00:02]} Kg7 {[%clk 00:01:13]} {[%emt 00:00:03]} 36. g3 {[%clk 00:01:47]}
{[%emt 00:00:13]} Qa2 {[%clk 00:01:09]} {[%emt 00:00:05]} 37. Kg2 {[%clk
00:01:43]} {[%emt 00:00:07]} Qb3 {[%clk 00:01:07]} {[%emt 00:00:03]} 38. Bf5
{[%clk 00:01:29]} {[%emt 00:00:16]} Nh6 {[%clk 00:01:00]} {[%emt 00:00:10]} 39.
Qc2 {[%clk 00:01:18]} {[%emt 00:00:13]} Qxc2 {[%clk 00:00:55]} {[%emt
00:00:07]} 40. Bxc2 {[%clk 00:01:19]} {[%emt 00:00:01]} Be7 {[%clk 00:00:56]}
41. g4 {[%clk 00:01:19]} {[%emt 00:00:02]} f5 {[%clk 00:00:48]} {[%emt
00:00:10]} 42. gxf5 {[%clk 00:01:10]} {[%emt 00:00:12]} Kf6 {[%clk 00:00:47]}
{[%emt 00:00:02]} 43. Kf3 {[%clk 00:01:00]} {[%emt 00:00:12]} Nxf5 {[%clk
00:00:46]} {[%emt 00:00:03]} 44. Kg4 {[%clk 00:00:56]} {[%emt 00:00:05]} Nd4
{[%clk 00:00:34]} {[%emt 00:00:15]} 45. Bxg5+ {[%emt 00:00:03]} Kf7 46. Bd1
{[%clk 00:00:46]} {[%emt 00:00:11]} b3 {[%clk 00:00:19]} {[%emt 00:00:18]} 47.
Bxe7 Kxe7 {[%clk 00:00:21]} 48. Kg5 {[%clk 00:00:40]} {[%emt 00:00:02]} Kf7
{[%clk 00:00:22]} 49. h4 {[%clk 00:00:41]} {[%emt 00:00:01]} Kg7 {[%clk
00:00:23]} 50. h5 {[%clk 00:00:42]} {[%emt 00:00:01]} Kh8 {[%clk 00:00:24]} 51.
Kf6 {[%clk 00:00:42]} {[%emt 00:00:01]} e4 {[%clk 00:00:24]} {[%emt 00:00:03]}
52. Ke7 {[%clk 00:00:41]} {[%emt 00:00:02]} Nf5+ {[%clk 00:00:22]} {[%emt
00:00:05]} 53. Ke6 {[%clk 00:00:41]} Ng7+ {[%clk 00:00:22]} {[%emt 00:00:03]}
54. Kxd6 {[%clk 00:00:41]} {[%emt 00:00:02]} Kh7 {[%clk 00:00:23]} {[%emt
00:00:01]} 55. Kxc5 {[%clk 00:00:40]} {[%emt 00:00:03]} Kh6 {[%clk 00:00:25]}
56. Kd4 {[%clk 00:00:40]} {[%emt 00:00:02]} 1-0

[Event "MČR v bleskovém šachu družstev 2019"]
[Site "Teplice, Czech Republic"]
[Date "2019.09.14"]
[Round "7.1"]
[White "Kociscak, Jiri"]
[Black "Krejci, Jan"]
[Result "1-0"]
[TimeControl "3 mim. + 2 s"]
[WhiteTitle "IM"]
[BlackTitle "GM"]
[WhiteFideId "322121"]
[BlackFideId "322156"]
[WhiteElo "2417"]
[BlackElo "2527"]

1. d4 {[%clk 00:03:02]} {[%emt 00:00:01]} d5 {[%clk 00:03:03]} {[%emt
00:00:01]} 2. c4 {[%clk 00:03:03]} {[%emt 00:00:01]} e6 {[%clk 00:03:05]} 3.
Nf3 {[%clk 00:03:04]} {[%emt 00:00:01]} a6 {[%clk 00:03:05]} {[%emt 00:00:01]}
4. Nbd2 {[%clk 00:02:58]} {[%emt 00:00:07]} Nf6 {[%clk 00:03:05]} {[%emt
00:00:02]} 5. g3 {[%clk 00:02:59]} {[%emt 00:00:01]} c5 {[%clk 00:03:06]} 6.
dxc5 {[%clk 00:02:58]} {[%emt 00:00:03]} Bxc5 {[%clk 00:03:07]} {[%emt
00:00:02]} 7. e3 {[%clk 00:02:43]} {[%emt 00:00:16]} O-O {[%clk 00:03:03]}
{[%emt 00:00:05]} 8. Bg2 {[%clk 00:02:42]} {[%emt 00:00:03]} dxc4 {[%clk
00:03:04]} {[%emt 00:00:02]} 9. Nxc4 {[%clk 00:02:43]} {[%emt 00:00:01]} Qxd1+
{[%clk 00:03:04]} {[%emt 00:00:01]} 10. Kxd1 {[%clk 00:02:43]} {[%emt
00:00:02]} b5 {[%clk 00:03:05]} {[%emt 00:00:01]} 11. Ncd2 {[%clk 00:02:39]}
{[%emt 00:00:07]} Bb7 {[%clk 00:03:05]} {[%emt 00:00:02]} 12. Ke2 {[%clk
00:02:39]} {[%emt 00:00:01]} Nbd7 {[%clk 00:03:00]} {[%emt 00:00:07]} 13. Nh4
{[%clk 00:02:32]} {[%emt 00:00:09]} Bxg2 {[%clk 00:02:54]} {[%emt 00:00:08]} 14.
Nxg2 {[%clk 00:02:33]} {[%emt 00:00:01]} Rac8 {[%clk 00:02:55]} 15. Nb3 {[%clk
00:02:24]} {[%emt 00:00:11]} Bb6 {[%clk 00:02:44]} {[%emt 00:00:13]} 16. Bd2
{[%clk 00:02:25]} {[%emt 00:00:02]} Rc2 {[%clk 00:02:42]} {[%emt 00:00:04]} 17.
Kd1 {[%clk 00:02:09]} {[%emt 00:00:17]} Rxb2 {[%clk 00:02:31]} {[%emt
00:00:13]} 18. Kc1 {[%clk 00:02:10]} {[%emt 00:00:01]} Rxd2 {[%clk 00:02:05]}
{[%emt 00:00:28]} 19. Kxd2 {[%clk 00:02:11]} {[%emt 00:00:01]} Ne5 {[%clk
00:01:53]} {[%emt 00:00:13]} 20. Ke2 {[%clk 00:02:04]} {[%emt 00:00:09]} Nd5
{[%clk 00:01:37]} {[%emt 00:00:18]} 21. Rhc1 {[%clk 00:01:55]} {[%emt
00:00:09]} g5 {[%clk 00:01:34]} {[%emt 00:00:06]} 22. e4 {[%clk 00:01:36]}
{[%emt 00:00:21]} Nf6 {[%clk 00:01:25]} {[%emt 00:00:11]} 23. f3 {[%clk
00:01:21]} {[%emt 00:00:17]} g4 {[%clk 00:01:26]} 24. Nd2 {[%clk 00:01:22]} Rd8
{[%clk 00:01:12]} {[%emt 00:00:17]} 25. f4 {[%clk 00:01:22]} {[%emt 00:00:02]}
Nd3 {[%clk 00:01:01]} {[%emt 00:00:13]} 26. Rc6 {[%clk 00:01:15]} {[%emt
00:00:09]} Ba5 {[%clk 00:00:56]} {[%emt 00:00:08]} 27. Nb3 {[%clk 00:00:57]}
{[%emt 00:00:19]} Nb4 {[%clk 00:00:14]} {[%emt 00:00:41]} 28. Nxa5 {[%clk
00:00:56]} {[%emt 00:00:03]} Nxc6 {[%clk 00:00:16]} {[%emt 00:00:02]} 29. Nxc6
{[%clk 00:00:57]} {[%emt 00:00:01]} Rd6 {[%clk 00:00:18]} 30. Ne7+ {[%clk
00:00:56]} {[%emt 00:00:03]} Kf8 {[%emt 00:00:01]} 31. e5 Ke8 {[%clk 00:00:13]}
{[%emt 00:00:07]} 1-0